Cogmind - Beta 13 @@@ ROGUE MODE // 2024.05.05 @ 11:13:45 Player: A Foxgirl OwO Result: Destroyed self with Rocket Launcher Performance ------------- Evolutions (0) 0 Regions Visited (4) 800 Robots Destroyed (28) 140 Value Destroyed (486) 486 Prototype IDs (25) 500 Alien Tech Used (0) 0 Bonus (300) 300 TOTAL SCORE: 2226 Bonus ------- Aligned with FarCom 300 Cogmind --------- Core Integrity 0/250 Matter 289/300 Energy 125/125 System Corruption 2% Temperature Cool (0) Movement Rolling (115) Ox1 Location -9/Mines Parts ------- > --- POWER (1) -------- Light Ion Engine > --- PROPULSION (2) --- Compact Wheel > --- UTILITY (2) ------ Large Storage Unit Tractor Beam > --- WEAPON (2) ------- Rocket Launcher > --- INVENTORY (15) --- Ion Engine Flight Unit Flight Unit Large Storage Unit Structural Scanner Faulty Experimental Sensor Array Signal Interpreter Utility Shielding YOLO Cannon Assault Rifle Assault Rifle Assault Rifle Light Assault Rifle Light Assault Rifle Peak State ------------ > --- POWER ------------ Ion Engine > --- PROPULSION ------- Compact Wheel Compact Wheel > --- UTILITY ---------- Large Storage Unit Tractor Beam > --- WEAPON ----------- Light Assault Rifle Rocket Launcher > --- INVENTORY -------- Ion Engine Flight Unit Flight Unit Large Storage Unit Structural Scanner Experimental Sensor Array Signal Interpreter Utility Shielding YOLO Cannon Assault Rifle Assault Rifle Assault Rifle Light Assault Rifle Light Assault Rifle [Rating: 12] Favorites ----------- Power Ion Engine Engine Ion Engine Power Core Light Nuclear Core Propulsion Compact Wheel Leg Aluminum Leg Wheel Compact Wheel Utility Large Storage Unit Device Tractor Beam Storage Large Storage Unit Protection Backup Plating I Weapon Assault Rifle Ballistic Gun Assault Rifle Launcher Rocket Launcher Build | -11 -10 -10 -10 -9 ------- Run | Yrd Mat Min Exi Min Slots Evolved . | . . . . . Power . | . . . . . Propulsion . | . . . . . Utility . | . . . . . Weapon . | . . . . . Parts Attached 37 | 6 16 10 . 5 Power 9 | 1 4 2 . 2 Engine 8 | 1 4 1 . 2 Core 1 | . . 1 . . Reactor . | . . . . . Propulsion 11 | 2 4 3 . 2 Treads . | . . . . . Leg 1 | . . 1 . . Wheel 10 | 2 4 2 . 2 Hover . | . . . . . Flight . | . . . . . Utility 4 | 1 3 . . . Device 2 | . 2 . . . Storage 2 | 1 1 . . . Processor . | . . . . . Hackware . | . . . . . Protection . | . . . . . Artifact . | . . . . . Weapon 13 | 2 5 5 . 1 Energy Gun . | . . . . . Energy Cannon . | . . . . . Ballistic Gun 12 | 2 5 5 . . Ballistic Cannon . | . . . . . Launcher 1 | . . . . 1 Special Weapon . | . . . . . Impact Weapon . | . . . . . Slashing Weapon . | . . . . . Piercing Weapon . | . . . . . Special Melee Weapon . | . . . . . Unidentified Prototypes . | . . . . . Parts Lost 7 | . . 3 . 4 Power 2 | . . 1 . 1 Propulsion 4 | . . 2 . 2 Utility . | . . . . . Weapon 1 | . . . . 1 Highest Loss Streak 3 | . . 3 . 2 To Critical Strikes . | . . . . . Average Slot Usage (%) 97 | . 98 98 100 93 Engine 12 | . 13 13 14 10 Wheel 26 | . 28 24 28 25 Device 11 | . 8 14 14 14 Storage 14 | . 14 14 14 14 Protection 1 | . 4 . . . Ballistic Gun 26 | . 27 28 28 23 Launcher 1 | . . . . 4 Naked Turns . | . . . . . Heaviest Build 31 | 13 30 30 29 31 Greatest Support 32 | 32 32 32 32 32 Greatest Overweight (x) 9 | . 1 9 . 1 Average Overweight (x) . | . . . . . Largest Inventory Capacity 15 | 8 15 15 15 15 Average Capacity 13 | 6 12 15 15 15 Most Carried 15 | 4 15 15 15 15 Average Carried 13 | 2 11 14 14 15 Final Capacity 15 | 8 15 15 15 15 Final Carried 15 | 4 15 15 15 15 Class Distribution -------------------- 52% | Scavenger-Mutant 47% | Mutant Dominant Class ---------------- Mutant | -10/Materials Scavenger-Mutant | -10/Mines Scavenger-Mutant | -10/Exiles Scavenger-Mutant | -9/Mines Resources | -11 -10 -10 -10 -9 ----------- Run | Yrd Mat Min Exi Min Matter Collected 1040 | 206 476 236 . 122 Remotely 434 | . 83 229 . 122 Salvage Created 912 | . 456 303 . 153 Parts 57 | . 29 24 . 4 Haulers Intercepted . | . . . . . Recyclers Shooed 1 | . 1 . . . Parts Field Recycled . | . . . . . Retrieved Matter . | . . . . . Parts Self-Destructed . | . . . . . Prevented . | . . . . . Kills | -11 -10 -10 -10 -9 ------- Run | Yrd Mat Min Exi Min Combat Hostiles Destroyed 37 | . 11 8 . 18 Guns 19 | . 11 8 . . AOE 18 | . . . . 18 Classes Destroyed 8 | . 6 . . 2 Worker 2 | . 2 . . . Recycler 4 | . 1 2 . 1 Mechanic 1 | . 1 . . . Operator 1 | . 1 . . . Swarmer 12 | . 6 6 . . Grunt 7 | . 5 2 . . Duelist 1 | . . . . 1 Assembled 17 | . . . . 17 Best Kill Streak 17 | . 4 5 . 17 Combat Bots Only 17 | . 3 4 . 17 Max Kills in Single Turn 8 | . 1 2 . 8 Gunslinging . | . . . . . Exploded 8 | . . . . 8 Melee . | . . . . . Uniques/NPCs Destroyed . | . . . . . Combat | -11 -10 -10 -10 -9 -------- Run | Yrd Mat Min Exi Min Hostile Shots Fired 135 | . 53 70 . 12 Missed 26 | . 9 16 . 1 Damage Taken 1317 | . 429 472 . 416 Core 254 | . 67 102 . 85 Absorbed by Shields . | . . . . . Regen/Repaired (Parts) 16 | . 16 . . . Core Remaining (%) 100 | 100 . . . . Volleys Fired 76 | . 46 23 . 7 Largest 2 | . 2 2 . 1 Hottest 40 | . 40 40 . 33 Shots Fired 146 | . 92 46 . 8 Gun 139 | . 92 46 . 1 Cannon . | . . . . . Launcher 7 | . . . . 7 Special . | . . . . . Kinetic 139 | . 92 46 . 1 Thermal . | . . . . . Explosive 7 | . . . . 7 Electromagnetic . | . . . . . Robot Hit Streak 14 | . 14 7 . 4 Robot Miss Streak 4 | . 3 4 . . Penetration Max . | . . . . . Secondary Targets 2 | . 1 1 . . Max Gunslinging Chain 1 | . 1 1 . . Shots Hit Robots 89 | . 59 28 . 2 Core Hits 64 | . 23 15 . 26 Critical Kills 1 | . 1 . . . Critical Parts Destroyed . | . . . . . Critical Strikes 1 | . 1 . . . Destroy 1 | . 1 . . . Melee Attacks . | . . . . . Impact . | . . . . . Slashing . | . . . . . Piercing . | . . . . . Sneak Attacks . | . . . . . Combat Hostiles . | . . . . . Follow-up Attacks . | . . . . . Damage Inflicted 2189 | . 771 337 . 1081 Guns 1111 | . 759 337 . 15 Cannons . | . . . . . Explosions 1065 | . . . . 1065 Melee . | . . . . . Ramming 13 | . 12 . . 1 Kinetic 1111 | . 759 337 . 15 Thermal . | . . . . . Explosive 1065 | . . . . 1065 Electromagnetic . | . . . . . Impact . | . . . . . Slashing . | . . . . . Piercing . | . . . . . Highest Corruption 2 | . 2 2 2 2 Average Corruption 2 | . 2 2 2 2 Corruption Purged . | . . . . . Corruption Blocked . | . . . . . Effects 25 | . 4 10 2 9 Message Errors 5 | . . 1 1 3 Matter Fused 6 | . 1 3 . 2 Heat Flow Errors 4 | . 1 1 1 1 Energy Discharges 3 | . . 3 . . Data Loss (minor) 5 | . 1 2 . 2 Data Loss (major) 1 | . 1 . . . Misfires 1 | . . . . 1 Overload Shots . | . . . . . Overflow Damage 5 | . . . . 5 Projectiles . | . . . . . Explosions 5 | . . . . 5 Melee . | . . . . . Knockbacks . | . . . . . Impact . | . . . . . Kinetic . | . . . . . Secondary . | . . . . . Self-Inflicted Damage 205 | . 6 . . 199 Shots 5 | . . . . 5 Rammed 2 | . 1 . . 1 Targets Rammed 2 | . 1 . . 1 Kicked . | . . . . . Crushed . | . . . . . Highest Temperature 252 | . 252 156 210 123 Average Temperature 62 | . 57 43 110 63 Received Heat Transfer 213 | . 132 81 . . Siege Activations . | . . . . . Robots Corrupted . | . . . . . Combat Hostiles . | . . . . . Parts Fried . | . . . . . Impact Corruptions . | . . . . . Robots Melted . | . . . . . Combat Hostiles . | . . . . . Parts Melted . | . . . . . Heat Transferred . | . . . . . Parts Sabotaged . | . . . . . Parts Stolen . | . . . . . Parts Stripped . | . . . . . Power Chain Reactions . | . . . . . Alert | -11 -10 -10 -10 -9 ------- Run | Yrd Mat Min Exi Min Peak Influence 218 | . 171 218 . 26 Initial 48 | . . 48 . . Average 60 | . 75 95 . 4 Maximum Alert Level 1 | . . 1 . . Low Security (%) 90 | 100 100 67 . 100 Level 1 9 | . . 32 . . Level 2 . | . . . . . Level 3 . | . . . . . Level 4 . | . . . . . Level 5 . | . . . . . High Security . | . . . . . Max Security . | . . . . . Squads Dispatched 2 | . 2 . . . Investigation . | . . . . . Extermination . | . . . . . Reinforcement 2 | . 2 . . . Assault . | . . . . . Garrison . | . . . . . Intercept . | . . . . . Searches Triggered . | . . . . . Construction Impeded . | . . . . . Haulers Reinforced . | . . . . . Active Scanning Responses . | . . . . . Cargo Convoy Interrupts . | . . . . . Stealth | -11 -10 -10 -10 -9 --------- Run | Yrd Mat Min Exi Min Distress Signals 1 | . 1 . . . Communications Jammed . | . . . . . Distress Signals . | . . . . . Times Spotted 47 | . 22 8 . 17 Peak Tracking Total 17 | . 3 4 . 17 Tactical Retreats . | . . . . . Traps | -11 -10 -10 -10 -9 ------- Run | Yrd Mat Min Exi Min Traps Triggered 3 | . 3 . . . Indirectly . | . . . . . Trap Hack Attempts . | . . . . . Triggered . | . . . . . Disarmed . | . . . . . Reprogrammed . | . . . . . Reused . | . . . . . Traps Extracted . | . . . . . Installed . | . . . . . Triggered . | . . . . . Machines | -11 -10 -10 -10 -9 ---------- Run | Yrd Mat Min Exi Min Machines Disabled . | . . . . . Max in Single Turn . | . . . . . Machines Repaired . | . . . . . Machines Dismantled . | . . . . . Machines Sabotaged . | . . . . . Overloaded Fab Kills . | . . . . . Hacking | -11 -10 -10 -10 -9 --------- Run | Yrd Mat Min Exi Min Machines Accessed 9 | . 8 . 1 . Terminals 5 | . 5 . . . Fabricators . | . . . . . Repair Stations 1 | . 1 . . . Recycling Units 2 | . 2 . . . Scanalyzers . | . . . . . Garrison Access . | . . . . . Total Hacks 17 | . 16 . 1 . Successful 10 | . 9 . 1 . Failed 7 | . 7 . . . Catastrophic . | . . . . . Database Lockouts . | . . . . . Manual 7 | . 6 . 1 . Terminals 11 | . 11 . . . Fabricators . | . . . . . Repair Stations 3 | . 3 . . . Recycling Units 2 | . 2 . . . Scanalyzers . | . . . . . Garrison Access . | . . . . . Terminal Hacks 5 | . 4 . 1 . Prototype ID Bank 1 | . 1 . . . Level Access Points 1 | . 1 . . . Registered Components 1 | . 1 . . . Zone Layout 1 | . 1 . . . Derelict Proto ID Bank 1 | . . . 1 . Fabricator Hacks . | . . . . . Repair Station Hacks 3 | . 3 . . . Scan Component 1 | . 1 . . . Repair 1 | . 1 . . . Refit 1 | . 1 . . . Recycling Unit Hacks 2 | . 2 . . . Report Inventory 2 | . 2 . . . Scanalyzer . | . . . . . Garrison Access Hacks . | . . . . . Unauthorized Hacks . | . . . . . Terminals . | . . . . . Fabricators . | . . . . . Repair Stations . | . . . . . Recycling Units . | . . . . . Scanalyzers . | . . . . . Garrison Access . | . . . . . Data Cores Recovered . | . . . . . Used . | . . . . . Hacking Detections 5 | . 5 . . . Full Trace Events . | . . . . . Feedback Events . | . . . . . Feedback Blocked . | . . . . . Robot Schematics Acquired . | . . . . . Robots Built . | . . . . . Authchips . | . . . . . Time . | . . . . . Total Robot Build Rating . | . . . . . Part Schematics Acquired . | . . . . . Parts Built . | . . . . . Authchips . | . . . . . Time . | . . . . . Total Part Build Rating . | . . . . . Parts Repaired 1 | . 1 . . . Time 26 | . 26 . . . Parts Recycled . | . . . . . Recycled Matter . | . . . . . Retrieved Matter . | . . . . . Retrieved Components . | . . . . . Parts Scanalyzed . | . . . . . Part Schematics Acquired . | . . . . . Parts Damaged . | . . . . . Bothacking | -11 -10 -10 -10 -9 ------------ Run | Yrd Mat Min Exi Min Used RIF Installer . | . . . . . Robots Hacked . | . . . . . Non-combat . | . . . . . Combat . | . . . . . Robot Hacks Applied . | . . . . . Relay Couplers Released . | . . . . . Fabnet Peak Effective % . | . . . . . Robots Rewired . | . . . . . Allies Hacked . | . . . . . Hacks Repelled . | . . . . . Allies | -11 -10 -10 -10 -9 -------- Run | Yrd Mat Min Exi Min Total Allies 1 | . . 1 . . Largest Group 1 | . . 1 . . Highest-Rated Group 31 | . . 31 . . Highest-Rated Ally 31 | . . 31 . . Total Orders . | . . . . . Ally Attacks . | . . . . . Total Damage . | . . . . . Kills . | . . . . . Allies Corrupted . | . . . . . Allies Melted . | . . . . . Intel | -11 -10 -10 -10 -9 ------- Run | Yrd Mat Min Exi Min Robot Analysis Total . | . . . . . Derelict Logs Recovered 2 | . . 2 . . Drone Launches . | . . . . . Drone Recoveries . | . . . . . Exploration | -11 -10 -10 -10 -9 ------------- Run | Yrd Mat Min Exi Min Turns Passed 3050 | 74 1147 867 215 747 Spaces Moved 2259 | 63 931 679 213 373 Core 3 | 2 . 1 . . Treads . | . . . . . Legs 7 | . . 7 . . Wheels 2249 | 61 931 671 213 373 Hover . | . . . . . Flight . | . . . . . Fastest Speed 50 | 50 80 95 100 90 Average Speed 99 | 98 95 103 100 103 Slowest Speed 500 | 100 100 500 100 115 Overloaded Moves . | . . . . . Propulsion Burnouts . | . . . . . Robots Hopped . | . . . . . Cave-ins Triggered . | . . . . . Exploration Rate (%) 67 | 4 97 98 60 77 Regions Visited 4 Branch Regions 3 Pre-discovered Areas 1 | . . . . 1 Known Exits Taken . | . . . . . Unknown Exits Taken 4 | 1 1 1 1 . Scrap Searched 2 | . . 1 . 1 Spaces Dug . | . . . . . Terrain Destroyed 69 | . . . . 69 Melee . | . . . . . Projectile . | . . . . . AOE 69 | . . . . 69 Terrain Rammed . | . . . . . Walls Destroyed . | . . . . . Machines Disabled . | . . . . . Actions | -11 -10 -10 -10 -9 --------- Run | Yrd Mat Min Exi Min Total 2915 | 72 1101 800 215 727 Wait 497 | . 81 77 . 339 Move 2255 | 62 930 678 212 373 Hop . | . . . . . Pick Up 22 | 4 13 4 1 . Fast Attach 16 | 6 5 3 . 2 Attach 1 | . . 1 . . Detach . | . . . . . Swap 20 | . 11 6 . 3 Drop 26 | . 14 8 2 2 Fire 76 | . 46 23 . 7 Melee . | . . . . . Ram 2 | . 1 . . 1 Kick . | . . . . . Crush . | . . . . . Escape Stasis . | . . . . . Rewire . | . . . . . Trap . | . . . . . Miscellaneous . | . . . . . Route ------- -11/Scrapyard -10/Materials (discovered 6 exits: *Mat x3 / [*Min x2] / [Sub]) -10/Mines (discovered 3 exits: *Mat x2 / *Exi) -10/Exiles -9/Mines History --------- Turn | Location | Event 13 | -11/Scrapyard | Discovered new exit (range 15) 75 | -11/Scrapyard | Entered Materials 172 | -10/Materials | Discovered new exit (range 14) 236 | -10/Materials | Discovered new exit (range 6) 305 | -10/Materials | Build established: Mutant 364 | -10/Materials | Discovered new exit (range 15) 554 | -10/Materials | Identified exit to Materials 613 | -10/Materials | Repaired Terrain Scanner 895 | -10/Materials | Discovered new exit (range 15) 1222 | -10/Materials | Entered Mines 1281 | -10/Mines | Core integrity fell below 50% 1324 | -10/Mines | Lost 3 parts (1p2n) 1379 | -10/Mines | Learned 2 Materials zone layouts 1390 | -10/Mines | Discovered exit to Materials (range 8) 1487 | -10/Mines | Received a Mining Laser from a helpful Derelict 1523 | -10/Mines | Found a damaged Exp. Sensor Array with a note attached 1525 | -10/Mines | Found Prototype Device 1603 | -10/Mines | Build established: Scavenger-Mutant 1608 | -10/Mines | Found a hidden stash of uninstalled traps 1691 | -10/Mines | Discovered exit to Materials (range 14) 1986 | -10/Mines | Received a Rocket Launcher from a helpful Derelict 2085 | -10/Mines | Deemed a non-threat by the Exiles lab entrance 2085 | -10/Mines | Discovered new exit (range 5) 2089 | -10/Mines | Entered Exiles 2113 | -10/Exiles | Met 8R-AWN 2130 | -10/Exiles | Met EX-HEX 2159 | -10/Exiles | Met EX-BIN 2171 | -10/Exiles | Aligned with FarCom system 2172 | -10/Exiles | Given EX-Vault access code 2198 | -10/Exiles | Opened EX-Vault 2208 | -10/Exiles | Found YOLO Cannon 2230 | -10/Exiles | Warned to stay clear of 0b10 Research branches 2259 | -10/Exiles | Met EX-DEC 2295 | -10/Exiles | Discovered new exit (range 10) 2304 | -10/Exiles | Left Exiles lab with YOLO Cannon 2304 | -10/Exiles | Entered Mines 2454 | -9/Mines | Met a Derelict bent on vengeance 2812 | -9/Mines | Assembled infested the area 2838 | -9/Mines | Core integrity fell below 20% 2858 | -9/Mines | Destroyed 17 combat bots 2880 | -9/Mines | Learned location of Storage (-9) 2985 | -9/Mines | A weapon hastily lodged in a ceiling crevice suddenly fell to the ground 3051 | -9/Mines | Destroyed self with Rocket Launcher Last Messages --------------- Dropped Wheel. U-05 Engineer lays Concrete. Acquired Lgt. Ion Engine. U-05 Engineer lays Concrete. K-01 Serf collects debris. U-05 Engineer lays Concrete. K-01 Serf collects debris. U-05 Engineer lays Concrete. K-01 Serf collects debris. U-05 Engineer lays Concrete. U-05 Engineer builds a Wall. K-01 Serf collects debris. U-05 Engineer builds a Wall. K-01 Serf collects debris. Acquired 60 matter. U-05 Engineer builds a Wall. K-01 Serf collects debris. Lgt. Assault Rifle destroyed. Wheel destroyed. L-31 Rogue destroyed. Map ----- +----------------------------------------------------+ | ### ##???????????????????????????????????? # | | ####?####????????????????????????????????????? # | | #####????????????????????????????????????##### # | | # #????????????????????????????????????# | | # ### #????????????????????????????????????# | | # #?# #??????###?###?????????####??????????# | | #?# #?#####? ## ##??????### ##?????????# | | ###?# ### ##### ##?????## ###???????# | | ???## ! ##????# ##??????## #### | | ??## ] #?????# ##???#### #??? | | ?## ##???## #???# #??? | | ## ## ##### #???# ####??? | | # ### #???# #?????? | | ### #???# #?????? | | =##?######## % ##?### ####??? | | #?????????## ##??# #??? | | #??????????########### #???# #### #??? | | ???????????#####????# #???#s#????#??? | | ??????????## ##??## #???#s#???????? | | ## #?????????# #### ###### #???????? | | ?## #?????????# ## s #???????? | | ??##### ?????????## ### ######???????? | | ??????## ??????????## ### #????????????? | | ????????# ???????????## # ## #????????????? | | ?????????## ???????????# ## ## #????????????? | | ???????????#???????????# @ #g ## ####?????????? | | ???????????????????????# %/ # ## ##????????? | | #??????????????????????# = ## #### #????????? | | ##?????????????????????## # ## #?# ##???????? | | #????????????????????????? ## ### #???????? | | #????????????????????????# ## =%*#???????? | | #????????????????????????# ## ##### ##???????? | | ##???????????????????##### ## #???#####????????? | | #??????????????????## ## #????????????????? | | ##?????????????????# ### #????????????????? | | #?????????????????# ## #????????????????? | | #??????????????????# ##???????????????? | | #??????????????????# """ #???????????????? | | ##????????????######## """ #???????????????? | | ###?????????##??# """ ##???????????????? | | ????????????# #?# ###????????????????? | | ????????????# ## ##### ##??????????????????? | | ???????????## ###?## ##???????????????????? | | ??????????## ########????????????????????? | | ?????????## ##???????????????????????? | | ######???# ##??????????????????????? | | # ##??## ##?????????????????????? | | ##??### ##????????????????????? | | #????## ##???????????????????? | | # ####### ### ##??????????????????? | +----------------------------------------------------+ Best States ------------- Heat Dissipation 25 Energy Generation 14 Energy Capacity 250 Matter Stores 300 Matter Capacity 300 Sight Range 16 Terrain Scan Range 14 Terrain Scan Density 10 Armor Coverage 80 Evasion (%) 44 Item Schematics ----------------- None Robot Schematics ------------------ None Fabricated ------------ Nothing Alien Tech Used ----------------- None Achievements -------------- Exterminator Quick And Dirty Challenges ------------ None Game ------ Seed LauncherSpectralLaser Manual? 0 Play Time 00:21:47 Cumulative 21.6 hours Start 2024.05.05 @ 10:21:46 End 2024.05.05 @ 11:13:45 Sessions 1 Manual Loads 0 Difficulty Rogue Special Mode None Game No. 46 Rogue 46 Adventurer 0 Explorer 0 Win Type - Total 0 Types 0/0/0/0/0/0/0/0/0 Lore% 16 Gallery% 19 Achievement% 18 Wizard Run 0 Options --------- Layout 1 ASCII 0 Keyboard 0 Movement Mouse Keybinds 0 Fullscreen 0 Font 42/SmallcapsGlow Map View 59x39 Zoom Use 0% Tactical HUD 0 Map Filters NONE Filters NONE Steam 1 RUN: a9d2133d-9a1e-4869-a514-80b47f98e029